[Event "Romanian Superleague 2022"]
[Site "Oradea"]
[Date "2022.09.21"]
[Round "1.1"]
[White "Dobre, Claudiu-Cristian"]
[Black "Tarlev, Konstantin"]
[Result "0-1"]
[ECO "A28"]
[WhiteElo "2268"]
[BlackElo "2576"]
[Annotator "TA"]
[PlyCount "100"]
[EventDate "2022.09.21"]
[EventType "team-tourn"]
[EventCountry "ROU"]
[SourceTitle "playchess.com"]
[Source "ChessBase"]
[SourceQuality "1"]
[TimeControl "40/5400+30:1800+30"]

{[%evp 9,100,26,31,14,13,9,16,-22,-19,-23,-19,-24,-24,-14,0,0,0,0,0,0,-8,-18,-11,-11,-12,-29,-14,-44,-39,-47,-39,-53,-53,-53,-53,-56,-56,-63,-57,-65,-49,-53,-46,-46,-46,-50,-47,-92,-46,-105,-95,-133,-125,-139,-129,-191,-184,-192,-191,-204,-167,-162,-65,-70,-81,-201,-222,-629,-627,-629,-620,-610,-600,-527,-478,-803,-802,-1089,-1093,-1076,-1039,-1040,-1019,-984,-956,-826,-811,-1707,-1494,-1311,-1197,-981,-834]} 1. c4 {[%emt 0:00:03]} e5 {[%emt 0:00:20]} 2. Nc3 {[%emt 0:00:06]} Nf6 {[%emt 0:00:41]} 3. Nf3 {[%emt 0:00:06]} Nc6 {[%emt 0:00:05]} 4. e3 {[%emt 0:00:04]} Be7 {[%emt 0:03:47]} 5. Qb3 {[%emt 0:02:03]} O-O {[%emt 0:00:56]} 6. a3 {[%emt 0:01:25] A28: English Opening: Four Knights Variation.} Re8 {[%emt 0:16:58]} 7. d3 {[%emt 0:04:52] [#]} Bf8 $146 {[%emt 0:08:57]} ({Predecessor:} 7... d6 8. Be2 Bf8 9. O-O a6 10. Bd2 h6 11. Rfd1 Rb8 12. Rac1 Be6 13. Qc2 Qd7 {1-0 (38) Stripunsky,A (2569)-Lapshun,Y (2479) Philadelphia 2007}) 8. e4 {[%emt 0:04:56] The position is equal.} Bc5 {[%emt 0:07:07]} 9. Be2 {[%emt 0:07:47]} d6 {[%emt 0:07:07]} 10. O-O {[%emt 0:03:26]} Bg4 {[%emt 0:05:54]} 11. Be3 {[%emt 0:22:19]} Bb6 {[%emt 0:14:28]} 12. Qd1 {[%emt 0:03:03]} h6 {[%emt 0:09:15]} 13. h3 {[%emt 0:07:25]} Bxf3 {[%emt 0:04:06]} 14. Bxf3 {[%emt 0:00:07]} Nd4 {[%emt 0:00:12]} 15. g3 {[%emt 0:04:47]} c6 {[%emt 0:03:02]} 16. Bg2 {[%emt 0:00:20]} Ne6 {[%emt 0:00:28]} 17. Kh2 {[%emt 0:05:29]} Bd4 {[%emt 0:02:41]} 18. Bxd4 {[%emt 0:02:46]} Nxd4 {[%emt 0:00:06]} 19. Ne2 {[%emt 0:01:53]} Qb6 {[%emt 0:00:22]} 20. Nxd4 {[%emt 0:05:22]} Qxd4 {[%emt 0:00:03]} 21. Qc2 {[%emt 0:07:17]} a5 {[%emt 0:00:38][%cal Ba7a5,Ba5a4][%mdl 32]} 22. b3 {[%emt 0:04:23]} Nd7 {[%emt 0:01:38][%cal Bf6d7,Bd7c5,Bc5b3][%mdl 32]} 23. h4 {[%emt 0:01:45]} Nc5 {[%emt 0:01:35]} 24. Rad1 {[%emt 0:00:11]} Ra6 {[%emt 0:07:18] Black is much more active.} 25. Rd2 {[%emt 0:00:11]} a4 {[%emt 0:05:16]} 26. b4 {[%emt 0:00:24]} Nb3 {[%emt 0:00:00]} 27. Rdd1 {[%emt 0:01:39]} b5 {[%emt 0:00:00]} 28. Bh3 {[%emt 0:03:04] [#]} Qb6 {[%emt 0:00:00]} (28... Ra7 $1 $17 29. cxb5 cxb5) 29. Kg2 {[%emt 0:01:07]} ({White should try} 29. f4 $15) 29... Ra7 $17 {[%emt 0:00:00]} (29... Nd4 30. Qa2 $15) 30. f4 {[%emt 0:06:03]} c5 {[%emt 0:00:00]} ({And not} 30... Nd4 31. Qa2 $15) 31. fxe5 {[%emt 0:00:50]} dxe5 {[%emt 0:00:00] And now ...cxb4 would win.} 32. bxc5 {[%emt 0:00:32]} (32. Qf2 $17 {was necessary.}) 32... Qxc5 $19 {[%emt 0:00:00]} 33. Qf2 {[%emt 0:00:19]} Nd4 {[%emt 0:02:21]} ({Stronger than} 33... bxc4 34. Qxc5 Nxc5 35. dxc4 $17) 34. Qb2 {[%emt 0:00:32]} bxc4 {[%emt 0:00:40] [#] Strongly threatening ...c3.} 35. Rc1 {[%emt 0:00:13]} Qe7 {[%emt 0:01:05]} (35... Qc7 $19 36. Rxc4 Rb8) 36. Rxc4 $15 {[%emt 0:00:17]} Rb7 $36 {[%emt 0:00:05][%mdl 2048] Black has strong initiative.} 37. Rb4 {[%emt 0:01:13]} (37. Qc1 $17) 37... Rxb4 $19 {[%emt 0:00:32]} 38. Qxb4 {[%emt 0:00:31]} (38. axb4 Rb8 39. Qa2) 38... Qxb4 {[%emt 0:00:28] Black is clearly winning.} 39. axb4 {[%emt 0:00:05][%cal Ob4b5][%mdl 4096] Endgame KRB-KRN} a3 {[%emt 0:00:50]} ({Inferior is} 39... Rb8 40. Ra1 $17) 40. Ra1 {[%emt 0:00:00]} Ra8 {[%emt 0:00:00]} 41. b5 {[%emt 0:11:13]} Nxb5 {[%emt 0:03:27]} 42. Bg4 {[%emt 0:00:14]} (42. Bd7 $142 Nd4 43. Ra2) 42... Nc3 {[%emt 0:02:51]} 43. Bd1 {[%emt 0:05:10]} Nxd1 {[%emt 0:00:49]} 44. Rxd1 {[%emt 0:00:06] KR-KR} Rb8 {[%emt 0:00:30]} 45. Kf3 {[%emt 0:05:28]} a2 {[%emt 0:00:04] ( -> ...Rb1)} 46. Ra1 {[%emt 0:00:03]} Rb2 {[%emt 0:00:02]} 47. g4 {[%emt 0:00:22]} Kf8 {[%emt 0:00:33]} 48. g5 {[%emt 0:00:32]} h5 {[%emt 0:00:20]} 49. Ke3 {[%emt 0:01:49]} Rh2 {[%emt 0:00:24] ...Ke7 is the strong threat.} 50. Kf3 {[%emt 0:00:43]} Ke7 {[%emt 0:27:29] Weighted Error Value: White=0.53/Black=0.07 (flawless)} 0-1

[Event "Romanian Superleague 2022"]
[Site "Oradea"]
[Date "2022.09.21"]
[Round "1.2"]
[White "Ionescu, Constantin"]
[Black "Padurariu, Mihai-Edward"]
[Result "1/2-1/2"]
[ECO "E54"]
[WhiteElo "2415"]
[BlackElo "2263"]
[Annotator "TA"]
[PlyCount "65"]
[EventDate "2022.09.21"]
[EventType "team-tourn"]
[EventCountry "ROU"]
[SourceTitle "playchess.com"]
[Source "ChessBase"]
[SourceQuality "1"]
[TimeControl "40/5400+30:1800+30"]

{[%evp 17,65,9,6,-13,0,0,4,-29,-28,-45,-21,-25,-31,-36,-49,-35,-35,-32,-42,-72,-71,-79,0,-87,-83,-59,-63,-85,-85,-67,-22,-20,-24,-11,-19,-40,-15,-35,0,0,0,0,0,0,0,0,0,0,0,0]} 1. d4 {[%emt 0:00:03]} d5 {[%emt 0:01:15]} 2. c4 {[%emt 0:00:51]} e6 {[%emt 0:00:15]} 3. Nc3 {[%emt 0:00:10]} c5 {[%emt 0:00:22]} 4. e3 {[%emt 0:01:48]} Nf6 {[%emt 0:02:19]} 5. Nf3 {[%emt 0:01:03]} cxd4 {[%emt 0:01:16]} 6. exd4 {[%emt 0:00:11]} Bb4 {[%emt 0:00:23]} 7. Bd3 {[%emt 0:05:06]} dxc4 {[%emt 0:02:33]} 8. Bxc4 {[%emt 0:00:10]} O-O {[%emt 0:00:45]} 9. O-O {[%emt 0:00:07]} Nbd7 {[%emt 0:03:23][%cal Bb8d7,Bd7b6,Bb6d5][%mdl 32]} 10. Ne2 {[%emt 0:07:20] E54: Nimzo-Indian: Rubinstein: Main Line: 7...dxc4 8 Bxc4.} (10. a3 $5 {[%cal Ra3b4]} Bxc3 11. bxc3 $11) 10... Nb6 {[%emt 0:14:29]} 11. Bb3 {[%emt 0:04:55] [#]} Nbd5 $146 {[%emt 0:10:41]} ({Predecessor:} 11... Bd7 12. a3 Be7 13. Bf4 Nbd5 14. Bg3 Qb6 15. Re1 Rfd8 16. Ne5 Be8 17. Rc1 Rac8 {0-1 (36) Nilssen,E (1799)-Thuesen,M (2169) Copenhagen 2016}) 12. Ng3 {[%emt 0:05:56]} Bd7 {[%emt 0:05:02]} 13. Bd2 {[%emt 0:04:41]} Bb5 {[%emt 0:03:02]} 14. Re1 {[%emt 0:01:00]} Qd6 {[%emt 0:07:42]} 15. a3 {[%emt 0:08:26]} Bxd2 {[%emt 0:11:53]} 16. Qxd2 {[%emt 0:00:47]} Qf4 {[%emt 0:05:46]} 17. Qa5 {[%emt 0:10:12]} a6 {[%emt 0:00:38]} 18. Re5 {[%emt 0:05:41]} Rac8 {[%emt 0:02:06][%cal Oc8c3]} 19. Qe1 {[%emt 0:00:59]} Rc7 {[%emt 0:03:57]} ({Better is} 19... Bc6 $17) 20. Nf1 {[%emt 0:19:12]} (20. Bxd5 $11 exd5 21. Nf5) 20... Rfc8 {[%emt 0:03:30] ...Rc1 is the strong threat.} 21. Ne3 {[%emt 0:04:20][%cal Rb3d5]} Nxe3 {[%emt 0:02:18]} 22. fxe3 {[%emt 0:03:01] [#]} Qh6 {[%emt 0:00:17]} 23. Rd1 {[%emt 0:00:41]} Bc4 {[%emt 0:03:02]} 24. Bxc4 {[%emt 0:01:37]} Rxc4 {[%emt 0:00:02]} 25. Rc5 {[%emt 0:00:29]} Nd5 {[%emt 0:04:55]} 26. Rxc8+ {[%emt 0:01:30]} (26. e4 {feels hotter.} Nf6 27. b3 R4xc5 28. dxc5 Qf4 29. Rd4) 26... Rxc8 {[%emt 0:00:07]} 27. e4 {[%emt 0:01:02]} Qe3+ {[%emt 0:02:00]} (27... Nf6 $5 {[%cal Rh6f4]}) 28. Qxe3 {[%emt 0:01:17] The position is equal.} Nxe3 {[%emt 0:00:04]} 29. Re1 {[%emt 0:00:13]} Ng4 {[%emt 0:00:26]} 30. h3 {[%emt 0:00:41]} Nf6 {[%emt 0:00:05]} 31. Re2 {[%emt 0:00:06]} Kf8 {[%emt 0:00:12]} 32. Kf2 {[%emt 0:00:08]} Ke7 {[%emt 0:00:19]} 33. Ke3 {[%emt 0:01:13] Weighted Error Value: White=0.12 (very precise) /Black=0.10 (very precise)} 1/2-1/2

[Event "Romanian Superleague 2022"]
[Site "Oradea"]
[Date "2022.09.21"]
[Round "1.3"]
[White "Voiteanu, Gabriel"]
[Black "Soltanici, Ruslan"]
[Result "0-1"]
[ECO "E04"]
[WhiteElo "2154"]
[BlackElo "2333"]
[Annotator "TA"]
[PlyCount "76"]
[EventDate "2022.09.21"]
[EventType "team-tourn"]
[EventCountry "ROU"]
[SourceTitle "playchess.com"]
[Source "ChessBase"]
[SourceQuality "1"]
[TimeControl "40/5400+30:1800+30"]

{[%evp 13,76,14,10,9,8,11,29,26,14,17,9,14,5,7,27,0,0,0,0,0,0,7,0,0,0,-7,0,-48,-39,-53,0,-66,-35,-50,-47,-147,-152,-148,-158,-192,-178,-346,-348,-424,-424,-417,-417,-459,-436,-521,-504,-2976,-2572,-3472,-3088,-4814,-4802,-29974,-29975,-29977,-29978,-29989,-29978,-29991,-29992]} 1. d4 {[%emt 0:05:34]} Nf6 {[%emt 0:00:15]} 2. c4 {[%emt 0:00:05]} e6 {[%emt 0:00:17]} 3. Nf3 {[%emt 0:10:06]} d5 {[%emt 0:00:42][%cal Bd7d5,Bd5c4][%mdl 32]} 4. g3 {[%emt 0:00:24]} dxc4 {[%emt 0:00:32]} 5. Bg2 {[%emt 0:00:54]} Nc6 {[%emt 0:00:26]} 6. O-O {[%emt 0:00:44]} Rb8 {[%emt 0:00:34]} 7. e3 {[%emt 0:01:00]} b5 {[%emt 0:01:40]} 8. b3 {[%emt 0:01:17] E04: Open Catalan: 5 Nf3.} cxb3 {[%emt 1:30:04]} 9. axb3 {[%emt 1:14:56]} Bb7 {[%emt 0:00:30]} 10. Qe2 {[%emt 0:00:30] White has an edge.} a6 {[%emt 0:00:30]} 11. Ne5 {[%emt 0:00:00]} Nxe5 12. Bxb7 {[%emt 0:01:00]} Rxb7 {[%emt 0:01:00]} 13. dxe5 {[%emt 0:00:00] [#]} Nd5 $146 {[%emt 0:00:00][%cal Bf6d5,Bd5b4,Bb4c2][%mdl 32]} ({Predecessor:} 13... Nd7 14. Rd1 Be7 15. Rxa6 O-O 16. Bb2 Qc8 17. Rc6 Nc5 18. Qc2 Rd8 19. Bd4 Nd7 {1-0 (32) Erigaisi,A (2559)-Gukesh,D (2563) Chess.com INT 2020}) 14. Rxa6 {[%emt 0:00:00]} (14. e4 $5 {[%cal Re4d5]} Nb6 15. Rxa6 $16) 14... Be7 {[%emt 0:00:00]} 15. Rd1 {[%emt 0:00:00]} Qb8 {[%emt 0:00:00]} 16. Qg4 {[%emt 0:00:00]} O-O {[%emt 0:00:00]} 17. e4 {[%emt 0:00:00]} h5 $1 {[%emt 0:00:00]} 18. Qxh5 {[%emt 0:00:00]} Nb4 {[%emt 0:00:00]} 19. Ra1 $132 {[%emt 0:00:00][%mdl 2048] White is not holding back} c5 {[%emt 0:00:00]} 20. Nc3 {[%emt 0:00:00]} (20. Bf4 $11 {is superior.}) 20... Nc2 {[%emt 0:00:00]} 21. Rb1 {[%emt 0:00:00]} g6 {[%emt 0:00:00]} (21... b4 $15 22. Ne2 Na3) 22. Qh6 {[%emt 0:01:46]} (22. Qg4 $11) 22... Qxe5 {[%emt 0:00:00]} 23. Bb2 {[%emt 0:00:56][%cal Oc3b5]} Nd4 {[%emt 0:00:00]} 24. f4 {[%emt 0:00:36] [#] Black converts the advantage convincingly.} (24. b4 $15) 24... Qh5 $1 $17 {[%emt 0:00:00]} 25. Qxh5 {[%emt 0:00:31]} gxh5 {[%emt 0:00:00]} 26. Ba1 {[%emt 0:02:08] [#]} Ra8 $1 {[%emt 0:00:32] Threatens to win with ...b4.} 27. Kg2 $2 {[%emt 0:00:30]} (27. e5) 27... b4 $19 {[%emt 0:00:51]} 28. Na4 {[%emt 0:00:34] [#]} Nxb3 {[%emt 0:00:13][%mdl 512]} 29. Rxb3 {[%emt 0:00:10][%cal Oa4c5]} Rxa4 {[%emt 0:00:06]} 30. Rbd3 {[%emt 0:00:54][%cal Od3d8]} Ra8 {[%emt 0:03:46] Inhibits Rd8+.} ({Weaker is} 30... c4 31. Rd8+ Kh7 32. Rh8+ Kg6 33. Rg8+ Kh7 34. Rh8+ Kg6 35. Rg8+ Kh7 36. Rh8+ $11) 31. f5 {[%emt 0:00:52]} c4 {[%emt 0:00:22][%cal Bc5c4,Bc4c3,Bc3c2][%mdl 32]} 32. Rd7 {[%emt 0:00:21]} (32. Rf3 $142 exf5 33. exf5) 32... Rxd7 {[%emt 0:00:20]} 33. Rxd7 {[%emt 0:00:03]} Rxa1 {[%emt 0:00:19]} 34. Rxe7 {[%emt 0:00:03]} exf5 {[%emt 0:01:25] And now ...c3 would win.} 35. exf5 {[%emt 0:00:06] KR-KR} b3 {[%emt 0:00:27] Black mates.} 36. Rb7 {[%emt 0:00:33]} c3 {[%emt 0:00:10]} 37. g4 {[%emt 0:01:27]} hxg4 {[%emt 0:00:29]} 38. f6 {[%emt 0:00:51]} c2 {[%emt 0:00:17] Weighted Error Value: White=0.77/Black=0.07 (flawless)} 0-1

[Event "Romanian Superleague 2022"]
[Site "Oradea"]
[Date "2022.09.21"]
[Round "1.4"]
[White "Cosma, Ioan"]
[Black "Oprisor, Razvan-Gabriel"]
[Result "1-0"]
[ECO "E62"]
[WhiteElo "2367"]
[BlackElo "2175"]
[Annotator "TA"]
[PlyCount "83"]
[EventDate "2022.09.21"]
[EventType "team-tourn"]
[EventCountry "ROU"]
[SourceTitle "playchess.com"]
[Source "ChessBase"]
[SourceQuality "1"]
[TimeControl "40/5400+30:1800+30"]

{[%evp 24,83,63,62,65,52,62,47,52,53,52,30,40,23,30,27,27,0,0,0,0,0,32,29,30,0,25,22,47,-107,57,57,127,89,85,51,215,216,210,216,309,309,280,291,622,591,768,765,848,824,2758,2765,2543,1664,4134,4133,2815,3041,2321,2321,1698,1591]} 1. Nf3 {[%emt 0:00:22]} Nf6 {[%emt 0:00:37]} 2. c4 {[%emt 0:00:35]} g6 {[%emt 0:00:46]} 3. g3 {[%emt 0:00:28]} Bg7 {[%emt 0:00:16]} 4. Bg2 {[%emt 0:00:15]} d6 {[%emt 0:00:36]} 5. O-O {[%emt 0:00:45]} O-O {[%emt 0:00:35]} 6. d4 {[%emt 0:00:50]} c6 {[%emt 0:01:23]} 7. Nc3 {[%emt 0:01:11]} Qa5 {[%emt 0:03:05]} 8. e4 {[%emt 1:30:04]} Bg4 {[%emt 0:01:00]} 9. h3 {[%emt 0:00:00]} Bxf3 {[%emt 0:01:08]} 10. Bxf3 {[%emt 0:00:00]} Nbd7 {[%emt 0:03:05]} 11. a3 {[%emt 0:00:00]} e5 {[%emt 0:07:06]} 12. d5 {[%emt 0:00:00]} cxd5 {[%emt 0:03:28]} 13. cxd5 {[%emt 0:00:00]} Rfc8 {[%emt 0:01:27] E62: King's Indian: Fianchetto: 6...c6 and Panno Variation (6...Nc6) without ...a6.} 14. Be3 {[%emt 0:00:00]} a6 {[%emt 0:04:04]} 15. Qe2 {[%emt 0:00:00]} Qd8 {[%emt 0:04:21] White is slightly better.} 16. Rfc1 {[%emt 0:00:00]} Qf8 {[%emt 0:04:27] [#]} 17. h4 $146 {[%emt 0:00:00]} ({Predecessor:} 17. b4 Bh6 18. Kg2 Rc7 19. Rc2 Rac8 20. Rac1 Bxe3 21. Qxe3 Qd8 22. g4 h6 23. Qxh6 {1-0 (34) Saleh,M (2245)-Shernoff,L North Bay 1996}) 17... h5 {[%emt 0:04:08]} 18. b4 {[%emt 0:00:00]} Bh6 {[%emt 0:03:10]} 19. Bg2 {[%emt 0:00:00]} Rc7 {[%emt 0:11:57]} 20. Bh3 {[%emt 0:00:00]} Rac8 {[%emt 0:07:35]} 21. Qd2 {[%emt 0:00:00]} Bxe3 {[%emt 0:05:25]} 22. Qxe3 {[%emt 0:00:00]} Kg7 {[%emt 0:01:07]} (22... Ng4 $5 {[%cal Rg4e3]} 23. Qe1 Qh6 $11) 23. f3 {[%emt 0:00:00]} Qd8 {[%emt 0:06:01]} 24. Bf1 {[%emt 0:00:00]} Qe7 {[%emt 0:02:12]} 25. a4 {[%emt 0:00:00]} Nb6 {[%emt 0:06:42][%cal Oc7c3] aiming for ...Rxc3!} 26. a5 $2 {[%emt 0:00:00] [#]} (26. Bh3 $14 {stays ahead.} Nbd7 27. a5) 26... Nc4 $2 {[%emt 0:02:29]} (26... Rxc3 $1 $17 {[%mdl 512]} 27. Rxc3 Nfxd5 $1 {[%mdl 512]} 28. exd5 Nxd5) 27. Qe1 {[%emt 0:00:00]} Nd7 {[%emt 0:02:53]} ({Better is} 27... Nb2 $1 $14) 28. Na4 {[%emt 0:00:00][%cal Bc3a4,Ba4b2,Bb2c4,Bc4e3,Be3f5][%mdl 32]} f5 {[%emt 0:04:36]} 29. Rc3 {[%emt 0:03:37]} f4 $2 {[%emt 0:02:12] [#] A mistake that costs the game.} (29... fxe4 $14 30. fxe4 Nf6) 30. Rac1 $1 $18 {[%emt 0:00:24][%cal Rf1c4]} b5 {[%emt 0:00:53] [#]} 31. Nb2 {[%emt 0:02:16][%mdl 512]} g5 {[%emt 0:01:46]} (31... fxg3 $142 32. Qxg3 Nf6) (31... Qd8 32. Nxc4) 32. Bxc4 {[%emt 0:01:48]} ({But not} 32. Nxc4 bxc4 33. Rxc4 Rxc4 34. Rxc4 Rxc4 35. Bxc4 Nf8 36. gxf4 gxf4 $18) 32... bxc4 {[%emt 0:00:10]} 33. Nxc4 {[%emt 0:00:21][%cal Oc4e3] And now Ne3! would win.} (33. Rxc4 Nf8 $16) 33... gxh4 $2 {[%emt 0:02:35] [#]} (33... Nf6 34. hxg5 Nh7 35. gxf4 exf4) 34. Ne3 $1 {[%emt 0:00:47][%mdl 512] White is clearly winning.} Rxc3 {[%emt 0:01:19]} (34... fxe3 35. Rxc7) 35. Nf5+ {[%emt 0:00:17][%mdl 64] Zwischenzug, Double Attack} ({Weaker is} 35. Rxc3 Rf8 36. Nf5+ Rxf5 37. exf5 hxg3 $16) 35... Kf6 {[%emt 0:00:04]} 36. Rxc3 {[%emt 0:00:11]} Qf8 {[%emt 0:00:42]} 37. Rxc8 {[%emt 0:01:28]} Qxc8 {[%emt 0:00:06]} 38. gxf4 {[%emt 0:00:06]} Qg8+ {[%emt 0:01:56]} 39. Kf1 {[%emt 0:01:32]} exf4 {[%emt 0:00:36]} 40. Qxh4+ {[%emt 0:00:00]} Qg5 {[%emt 0:00:00]} 41. Qxg5+ {[%emt 0:01:29]} Kxg5 {[%emt 0:00:22]} 42. Nxd6 {[%emt 0:00:39] Weighted Error Value: White=0.20 (precise) /Black=0.50} 1-0

[Event "Romanian Superleague 2022"]
[Site "Oradea"]
[Date "2022.09.21"]
[Round "1.5"]
[White "Ursente, Tudor-Alexandru"]
[Black "Itkis, Boris"]
[Result "0-1"]
[ECO "A49"]
[WhiteElo "1931"]
[BlackElo "2332"]
[Annotator "TA"]
[PlyCount "106"]
[EventDate "2022.09.21"]
[EventType "team-tourn"]
[EventCountry "ROU"]
[SourceTitle "playchess.com"]
[Source "ChessBase"]
[SourceQuality "1"]
[TimeControl "40/5400+30:1800+30"]

{[%evp 12,106,4,10,16,-12,-8,-9,0,0,-8,-13,3,-6,-8,-4,-4,-13,0,-2,0,-4,0,0,-6,-7,0,0,0,-32,-32,-30,-38,-86,-71,-93,-89,-83,-82,-73,-17,-60,-17,-32,-18,-49,-37,-43,-39,-119,-107,-137,-138,-159,-75,-79,-87,-91,-70,-68,-64,-68,-76,-107,-98,-241,-231,-343,-335,-330,-322,-372,-370,-400,-400,-400,-382,-391,-370,-368,-357,-371,-358,-317,-297,-368,-370,-342,-306,-315,-300,-368,-306,-534,-534,-29985,-29985]} 1. d4 {[%emt 0:05:26]} Nf6 {[%emt 0:00:12]} 2. Nf3 {[%emt 0:00:22]} c5 {[%emt 0:00:32]} 3. c3 {[%emt 0:03:36]} b6 {[%emt 0:01:02]} 4. g3 {[%emt 0:05:35]} Bb7 {[%emt 0:00:08]} 5. Bg2 {[%emt 0:00:04]} g6 {[%emt 0:01:01]} 6. O-O {[%emt 0:00:08]} Bg7 {[%emt 0:00:04]} 7. Nbd2 {[%emt 0:01:35][%cal Oe2e4]} O-O {[%emt 0:01:05] A49: 1 d4 Nf6 2 Nf3 g6 3 g3: Anti-King's Indian systems.} 8. b3 {[%emt 0:11:52]} d5 {[%emt 0:19:13]} 9. Bb2 {[%emt 0:03:22]} Nbd7 {[%emt 0:01:19] The position is equal.} 10. e3 {[%emt 0:11:33]} Qc7 {[%emt 0:05:23]} 11. Rc1 {[%emt 0:00:18]} e5 {[%emt 0:00:57] [#]} 12. Nxe5 $146 {[%emt 0:05:36]} ({Predecessor:} 12. c4 e4 13. Ng5 h6 14. Nh3 Qd6 15. cxd5 Bxd5 16. Nf4 Bb7 17. Nc4 Qe7 18. Qc2 cxd4 19. Bxd4 {½-½ (34) Harle,B (1856)-Waterfield,J (1930) Newport 2015}) 12... Nxe5 {[%emt 0:00:52]} 13. dxe5 {[%emt 0:00:05]} Qxe5 {[%emt 0:00:09]} 14. Qc2 {[%emt 0:03:35]} Qe7 {[%emt 0:02:36]} 15. c4 {[%emt 0:04:38]} (15. Rcd1 {is more complex.} Rad8 16. c4 Ng4 17. Bxg7 Kxg7 18. cxd5 Bxd5 19. Bxd5 Rxd5 20. Nc4) 15... dxc4 {[%emt 0:02:25]} (15... Rad8 {feels hotter.} 16. cxd5 Nxd5 17. Bxg7 Kxg7 18. a3 Rfe8) 16. Nxc4 {[%emt 0:08:10][%cal Oe3e4]} Bxg2 {[%emt 0:02:45]} 17. Kxg2 {[%emt 0:00:01]} ({Don't go for} 17. Bxf6 $2 Qb7 18. Bxg7 (18. Nd6 $2 Qc6 $19) 18... Bxf1 19. Rxf1 Kxg7 $19) 17... b5 {[%emt 0:03:41]} 18. Bxf6 {[%emt 0:09:53]} Bxf6 {[%emt 0:00:11]} 19. Nd2 {[%emt 0:00:21]} Rac8 {[%emt 0:00:11]} 20. Ne4 {[%emt 0:02:18]} c4 {[%emt 0:01:08]} 21. Nxf6+ {[%emt 0:01:15]} Qxf6 {[%emt 0:00:13]} 22. bxc4 {[%emt 0:01:41]} (22. Qc3 $15 Qa6 23. bxc4) 22... Rxc4 $17 {[%emt 0:01:50]} 23. Qb1 {[%emt 0:00:10]} Qc6+ {[%emt 0:00:14]} 24. Kg1 {[%emt 0:00:08]} Rc8 {[%emt 0:01:07][%cal Rc4c1]} 25. Rxc4 {[%emt 0:00:47]} Qxc4 {[%emt 0:00:18][%mdl 4096] Endgame KQR-KQR} (25... bxc4 $17 26. Qc2 c3) 26. Qb2 {[%emt 0:05:38]} a6 {[%emt 0:04:29]} 27. Qa3 {[%emt 0:08:44]} Qc6 {[%emt 0:12:43]} 28. Qe7 {[%emt 0:03:06]} Qd5 {[%emt 0:00:37]} 29. Qa3 {[%emt 0:00:53]} Rc6 {[%emt 0:00:10]} 30. Rb1 {[%emt 0:03:43] [#]} ({Better is} 30. h3 $15) 30... h5 $1 {[%emt 0:01:17][%cal Oh5h4]} 31. h4 {[%emt 0:00:10] [#]} Qd2 $1 {[%emt 0:01:22] And now ...Rc2 would win.} 32. Qe7 {[%emt 0:01:04] aiming for Qe8+.} Re6 {[%emt 0:07:24]} ({Black should try} 32... Qxa2 33. Rd1 Rc8) 33. Qa3 {[%emt 0:00:02]} Rf6 $36 {[%emt 0:00:47][%mdl 2048] Keeping White busy.} 34. Rf1 {[%emt 0:00:21]} Kg7 {[%emt 0:02:16]} 35. Qb3 {[%emt 0:00:47]} Rd6 {[%emt 0:00:15]} 36. Qb1 {[%emt 0:00:57]} Rd3 {[%emt 0:00:54]} 37. Qa1+ {[%emt 0:00:32]} Qc3 {[%emt 0:00:26] Black is more active.} 38. Qb1 {[%emt 0:00:14] White does not recover from this.} (38. Qxc3+ $17 Rxc3 39. Rd1) 38... Rd2 $19 {[%emt 0:00:46]} 39. Rc1 {[%emt 0:00:47]} (39. Qb3 {was necessary.} Qc2 40. Qxc2 Rxc2 41. a3) 39... Qf6 {[%emt 0:00:23]} 40. Rf1 {[%emt 0:00:00]} Rb2 {[%emt 0:00:00]} 41. Qa1 {[%emt 0:09:03] [#]} Rxf2 $3 {[%emt 0:02:19][%mdl 512]} 42. Qxf6+ {[%emt 0:00:05]} Rxf6 {[%emt 0:00:05] KR-KR} 43. Re1 {[%emt 0:00:07]} Rc6 {[%emt 0:00:13]} 44. Re2 {[%emt 0:00:09]} Rc3 {[%emt 0:00:15]} 45. Kf2 {[%emt 0:00:08]} Kf6 {[%emt 0:00:13]} 46. Kf3 {[%emt 0:00:43]} Rc4 {[%emt 0:01:23] Prevents g4.} 47. Rd2 {[%emt 0:01:35]} Ra4 {[%emt 0:00:20]} 48. e4 {[%emt 0:04:39]} Ke5 {[%emt 0:00:22]} 49. Rd5+ {[%emt 0:00:12]} Ke6 {[%emt 0:00:05]} 50. Rd2 {[%emt 0:00:10]} f6 {[%emt 0:00:21]} 51. Ke3 {[%emt 0:00:58]} g5 {[%emt 0:01:26]} 52. Rh2 $2 {[%emt 0:09:31]} (52. Rc2) 52... Ke5 {[%emt 0:01:11] ( -> ...Ra3+)} 53. hxg5 {[%emt 0:00:09]} Ra3+ {[%emt 0:00:05] Weighted Error Value: White=0.36/Black=0.09 (flawless)} 0-1